[Event "1st 4NCL International U2050"]
[Site "Telford"]
[Date "2018.10.31"]
[Round "1"]
[White "De Coverly, Roger D"]
[Black "Zdanowski, Adrian"]
[Result "1-0"]
[ECO "B07"]
[WhiteElo "1946"]
[BlackElo "1845"]
[Annotator "NA RC"]
[PlyCount "99"]
[EventDate "2018.10.31"]
[EventType "swiss"]
[EventCountry "GBR"]
[SourceTitle "playchess.com"]
[Source "ChessBase"]
[SourceQuality "1"]
[TimeControl "5400+30"]

1. e4 {[%emt 0:00:00]} d6 {[%emt 0:00:00]} 2. d4 {[%emt 0:00:00]} Nf6 {[%emt 0:00:00]} 3. Nc3 {[%emt 0:00:00]} g6 {[%emt 0:00:00]} 4. Be3 {[%emt 0:00:20]} a6 {[%emt 0:00:26]} 5. f4 {[%emt 0:00:33] B07: Pirc-Ufimzew-Verteidigung} (5. h3 Bg7 6. Nf3 O-O 7. a4 Nc6 8. Be2 e6 9. O-O b6 10. d5 exd5 11. exd5 Ne7 12. Bc4 Bb7 13. Qd2 Nf5 14. Bf4 Qd7 15. Rfe1 Rfe8 16. Rxe8+ Rxe8 17. Re1 Rxe1+ 18. Qxe1 {½-½ (63) Caruana,F (2799)-Grischuk,A (2782) Saint Louis 2017}) 5... Bg7 {[%emt 0:00:34]} 6. Nf3 {[%emt 0:00:34]} O-O {[%emt 0:01:03]} 7. Bd3 {[%emt 0:02:55]} b5 {[%emt 0:02:40]} 8. e5 {[%emt 0:04:01]} Ng4 {[%emt 0:02:03]} 9. Bg1 {[%emt 0:01:48] LiveBook: 3 Partien} c5 $146 {[%emt 0:05:37]} ({Vorgänger:} 9... c6 10. h3 Nh6 11. g4 dxe5 12. dxe5 Qa5 13. Qd2 {1-0 (67) Hracek,Z (2631)-Manolache,M (2546) Aix les Bains 2011}) 10. dxc5 {[%emt 0:04:07]} Bb7 {[%emt 0:09:58]} 11. cxd6 {[%emt 0:03:32]} exd6 {[%emt 0:00:25]} 12. h3 {[%emt 0:02:58]} Nh6 {[%emt 0:01:44]} 13. Be4 {[%emt 0:02:12]} Bxe4 {[%emt 0:01:44]} 14. Nxe4 {[%emt 0:00:06]} dxe5 {[%emt 0:01:25]} 15. Qxd8 {[%emt 0:02:46]} Rxd8 {[%emt 0:00:03]} 16. fxe5 {[%emt 0:01:10]} Nc6 {[%emt 0:00:38]} 17. Bh2 $11 {[%emt 0:06:17]} Re8 {[%emt 0:04:33]} 18. O-O {[%emt 0:19:34]} Nxe5 {[%emt 0:00:36]} 19. Nxe5 {[%emt 0:00:54]} Bxe5 {[%emt 0:00:06]} 20. Nf6+ {[%emt 0:02:22]} Bxf6 {[%emt 0:00:47]} 21. Rxf6 {[%emt 0:00:07]} Re2 {[%emt 0:02:23]} 22. Rf2 {[%emt 0:01:45]} Rae8 {[%emt 0:01:27]} 23. Bf4 {[%emt 0:03:45]} Nf5 {[%emt 0:01:06]} 24. Rd1 {[%emt 0:01:51]} R8e4 {[%emt 0:04:55]} 25. Bg5 {[%emt 0:02:53]} Kg7 {[%emt 0:09:23]} 26. g4 {[%emt 0:05:00]} Rxf2 {[%emt 0:00:53]} 27. Kxf2 {[%emt 0:00:28]} h6 {[%emt 0:12:42]} 28. Bd2 {[%emt 0:06:40]} Ne7 {[%emt 0:03:38]} 29. Bc3+ {[%emt 0:02:18]} Kh7 {[%emt 0:03:56]} 30. Rd8 {[%emt 0:00:21]} Ng8 {[%emt 0:00:32]} 31. Kf3 {[%emt 0:03:09]} Re6 {[%emt 0:00:05]} 32. Rd7 {[%emt 0:01:01]} Re7 {[%emt 0:00:49]} 33. Rd6 {[%emt 0:00:46]} Re6 {[%emt 0:00:10]} 34. Rxe6 {[%emt 0:00:46]} fxe6 {[%emt 0:00:02]} 35. Ke4 {[%emt 0:00:14]} g5 {[%emt 0:01:23]} 36. Ke5 {[%emt 0:00:49]} Kg6 {[%emt 0:00:01]} 37. Kxe6 {[%emt 0:00:54]} h5 {[%emt 0:00:02]} 38. b3 {[%emt 0:01:58]} hxg4 {[%emt 0:00:18]} 39. hxg4 {[%emt 0:00:15]} Nh6 {[%emt 0:00:01]} 40. Be1 {[%emt 0:01:01]} Nxg4 {[%emt 0:00:06]} 41. c4 {[%emt 0:00:56]} bxc4 {[%emt 0:01:07]} 42. bxc4 {[%emt 0:00:08]} Nf6 {[%emt 0:04:52]} 43. c5 {[%emt 0:02:01]} Ne4 {[%emt 0:00:56]} 44. c6 {[%emt 0:00:45]} Nc5+ {[%emt 0:00:02]} 45. Kd5 {[%emt 0:01:04]} Nd3 {[%emt 0:01:32]} 46. c7 {[%emt 0:00:46]} Nxe1 {[%emt 0:00:22]} 47. c8=Q {[%emt 0:00:10]} Nf3 {[%emt 0:00:13]} 48. Qxa6+ {[%emt 0:02:03]} Kf5 {[%emt 0:00:22]} 49. Qf1 {[%emt 0:01:43]} g4 {[%emt 0:00:52]} 50. a4 {[%emt 0:00:15]} 1-0

[Event "1st 4NCL International U2050"]
[Site "Telford"]
[Date "2018.10.31"]
[Round "1"]
[White "Benson, Paul J"]
[Black "Neatherway, A Philip"]
[Result "1/2-1/2"]
[ECO "B43"]
[WhiteElo "1912"]
[BlackElo "1813"]
[Annotator "NA RC"]
[PlyCount "35"]
[EventDate "2018.10.31"]
[EventType "swiss"]
[EventCountry "GBR"]
[SourceTitle "playchess.com"]
[Source "ChessBase"]
[SourceQuality "1"]
[TimeControl "5400+30"]

1. e4 {[%emt 0:17:08]} c5 {[%emt 0:00:12]} 2. Nf3 {[%emt 0:00:17]} e6 {[%emt 0:00:07]} 3. d4 {[%emt 0:00:21]} cxd4 {[%emt 0:00:06]} 4. Nxd4 {[%emt 0:00:00]} a6 {[%emt 0:01:05]} 5. Be2 {[%emt 0:05:19]} Nf6 {[%emt 0:01:42]} 6. Nc3 {[%emt 0:01:17]} Qc7 {[%emt 0:00:29]} 7. Qd3 {[%emt 0:03:23]} Nc6 $14 {[%emt 0:03:02] LiveBook: 3 Games} 8. Nxc6 {[%emt 0:06:42]} dxc6 {[%emt 0:00:52]} 9. O-O {[%emt 0:04:47]} e5 {[%emt 0:02:35]} 10. Kh1 {[%emt 0:11:07]} Be7 {[%emt 0:23:20]} 11. f4 {[%emt 0:10:03]} Be6 {[%emt 0:04:39]} 12. fxe5 {[%emt 0:05:16]} Qxe5 {[%emt 0:01:36]} 13. Bf4 {[%emt 0:30:50]} Qa5 {[%emt 0:05:36]} 14. e5 {[%emt 0:10:17]} Nd5 {[%emt 0:06:45]} 15. Nxd5 {[%emt 0:01:13]} Bxd5 {[%emt 0:09:51]} 16. c4 {[%emt 0:09:33]} Be6 {[%emt 0:00:36]} 17. a3 {[%emt 0:02:38]} O-O {[%emt 0:12:31]} 18. b4 {[%emt 0:04:20]} 1/2-1/2

[Event "1st 4NCL International U2050"]
[Site "Telford"]
[Date "2018.10.31"]
[Round "1"]
[White "Truman, Richard G"]
[Black "Ward, Andy"]
[Result "0-1"]
[ECO "C06"]
[WhiteElo "1902"]
[BlackElo "1790"]
[Annotator "NA RC"]
[PlyCount "64"]
[EventDate "2018.10.31"]
[EventType "swiss"]
[EventCountry "GBR"]
[SourceTitle "playchess.com"]
[Source "ChessBase"]
[SourceQuality "1"]
[TimeControl "5400+30"]

1. d4 {[%emt 0:00:00]} e6 {[%emt 0:00:00]} 2. e4 {[%emt 0:00:00]} d5 {[%emt 0:00:00]} 3. Nd2 {[%emt 0:00:00]} Nf6 {[%emt 0:00:00]} 4. e5 {[%emt 0:00:04]} Nfd7 {[%emt 0:00:00]} 5. Bd3 {[%emt 0:00:06]} c5 {[%emt 0:00:01]} 6. c3 {[%emt 0:00:05]} Nc6 {[%emt 0:00:05]} 7. Ne2 {[%emt 0:00:07]} cxd4 {[%emt 0:00:07]} 8. cxd4 {[%emt 0:00:06]} f6 {[%emt 0:00:04]} 9. exf6 {[%emt 0:03:42]} Nxf6 {[%emt 0:00:08]} 10. Nf3 {[%emt 0:00:09]} Bd6 {[%emt 0:00:12]} 11. Bg5 {[%emt 0:05:24]} O-O {[%emt 0:04:34]} 12. O-O {[%emt 0:00:32]} Qc7 {[%emt 0:00:15]} 13. Bh4 {[%emt 0:02:58]} Bd7 {[%emt 0:00:30]} 14. Rc1 {[%emt 0:01:38]} Be8 {[%emt 0:03:26]} 15. Bg3 {[%emt 0:03:11]} Bh5 {[%emt 0:00:54]} 16. Ne5 {[%emt 0:09:15]} Bxe5 $14 {[%emt 0:04:06] LiveBook: 5 Games} 17. Bxe5 {[%emt 0:01:14]} Qf7 {[%emt 0:04:49]} 18. Qd2 {[%emt 0:09:21]} Bg6 {[%emt 0:08:32]} 19. f3 {[%emt 0:10:21]} Bxd3 {[%emt 0:07:00]} 20. Qxd3 {[%emt 0:00:10]} Nd7 {[%emt 0:00:08]} 21. f4 {[%emt 0:02:19]} Qf5 {[%emt 0:02:11]} 22. Rc3 {[%emt 0:02:37]} Ndxe5 {[%emt 0:05:55]} 23. dxe5 {[%emt 0:01:31]} Qxd3 {[%emt 0:01:35]} 24. Rxd3 {[%emt 0:00:01]} Rac8 {[%emt 0:01:25]} 25. Rc1 {[%emt 0:03:03]} Kf7 {[%emt 0:08:22]} 26. Rdc3 {[%emt 0:00:43]} Ke7 {[%emt 0:00:16]} 27. Rh3 {[%emt 0:09:14]} Nd4 {[%emt 0:03:36]} 28. Rxc8 {[%emt 0:03:00]} Nxe2+ {[%emt 0:00:08]} 29. Kf1 {[%emt 0:00:42]} Rxc8 {[%emt 0:00:36]} 30. Kxe2 {[%emt 0:00:05]} Rc2+ {[%emt 0:00:16]} 31. Kd3 {[%emt 0:00:24]} Rxb2 {[%emt 0:00:10]} 32. Rxh7 {[%emt 0:00:21]} Rxg2 {[%emt 0:00:09]} 0-1

[Event "1st 4NCL International U2050"]
[Site "Telford"]
[Date "2018.10.31"]
[Round "1"]
[White "Hughes, Peter"]
[Black "Burgoyne, Peter A"]
[Result "1/2-1/2"]
[ECO "A58"]
[WhiteElo "1874"]
[BlackElo "1665"]
[Annotator "NA RC"]
[PlyCount "79"]
[EventDate "2018.10.31"]
[EventType "swiss"]
[EventCountry "GBR"]
[SourceTitle "playchess.com"]
[Source "ChessBase"]
[SourceQuality "1"]
[TimeControl "5400+30"]

1. d4 {[%emt 0:00:00]} Nf6 {[%emt 0:00:00]} 2. c4 {[%emt 0:00:00]} c5 {[%emt 0:00:00]} 3. d5 {[%emt 0:00:00]} b5 {[%emt 0:00:03]} 4. cxb5 {[%emt 0:00:03]} a6 {[%emt 0:00:06]} 5. Nc3 {[%emt 0:00:19]} g6 {[%emt 0:00:52]} 6. bxa6 {[%emt 0:00:45]} Bxa6 {[%emt 0:00:34]} 7. Nf3 {[%emt 0:00:12]} Bg7 {[%emt 0:00:20]} 8. g3 {[%emt 0:00:16]} O-O {[%emt 0:00:34]} 9. Bg2 {[%emt 0:00:26]} d6 {[%emt 0:00:20]} 10. O-O {[%emt 0:01:07]} Nbd7 {[%emt 0:00:27]} 11. Rb1 {[%emt 0:00:40]} Nb6 {[%emt 0:02:33]} 12. b3 {[%emt 0:01:26]} Qc7 {[%emt 0:03:55]} 13. Bb2 {[%emt 0:19:49]} Rfb8 {[%emt 0:05:46]} 14. Re1 {[%emt 0:05:05]} Nbd7 $16 {[%emt 0:08:39]} 15. Ba1 {[%emt 0:11:43]} Qa5 {[%emt 0:07:26]} 16. Qc2 {[%emt 0:08:25]} Ng4 {[%emt 0:06:19]} 17. h3 {[%emt 0:15:02]} Nge5 {[%emt 0:00:47]} 18. Nxe5 {[%emt 0:02:21]} Nxe5 {[%emt 0:01:46]} 19. f4 {[%emt 0:02:28]} Nd7 {[%emt 0:02:13]} 20. Ne4 {[%emt 0:05:00]} Bxa1 {[%emt 0:10:20]} 21. Rxa1 {[%emt 0:00:08]} Rc8 {[%emt 0:07:22]} 22. Qc3 {[%emt 0:06:13]} Qb6 {[%emt 0:02:06]} 23. Kh2 {[%emt 0:01:51]} Rab8 {[%emt 0:04:47]} 24. Rab1 {[%emt 0:01:05]} Qb4 {[%emt 0:01:51]} 25. Bf3 {[%emt 0:01:58]} c4 {[%emt 0:06:09]} 26. Qxb4 {[%emt 0:03:46]} Rxb4 {[%emt 0:01:24]} 27. bxc4 {[%emt 0:01:09]} Rbxc4 {[%emt 0:03:07]} 28. Rb2 {[%emt 0:01:00]} Ra4 {[%emt 0:03:27]} 29. Kg2 {[%emt 0:03:59]} Rcc4 {[%emt 0:03:55]} 30. Nd2 {[%emt 0:00:47]} Rc3 {[%emt 0:01:15]} 31. Nb1 {[%emt 0:01:47]} Rc5 {[%emt 0:02:02]} 32. Nd2 {[%emt 0:00:45]} Rca5 {[%emt 0:03:33]} 33. Ra1 {[%emt 0:00:16]} Nc5 {[%emt 0:00:50]} 34. Kf2 {[%emt 0:00:42]} Ra3 {[%emt 0:01:14]} 35. Ne4 {[%emt 0:02:50]} Nxe4+ {[%emt 0:04:16]} 36. Bxe4 {[%emt 0:00:04]} Bc4 {[%emt 0:00:34]} 37. Rb7 {[%emt 0:00:20]} Rxa2 {[%emt 0:01:06]} 38. Rxa2 {[%emt 0:00:44]} Rxa2 {[%emt 0:00:07]} 39. Bf3 {[%emt 0:00:08]} e6 {[%emt 0:02:12]} 40. dxe6 {[%emt 0:00:25]} 1/2-1/2

[Event "1st 4NCL International U2050"]
[Site "Telford"]
[Date "2018.10.31"]
[Round "1"]
[White "Bryant, Richard Be"]
[Black "Parry, Jacques"]
[Result "1-0"]
[ECO "B02"]
[WhiteElo "1856"]
[BlackElo "1625"]
[Annotator "NA RC"]
[PlyCount "75"]
[EventDate "2018.10.31"]
[EventType "swiss"]
[EventCountry "GBR"]
[SourceTitle "playchess.com"]
[Source "ChessBase"]
[SourceQuality "1"]
[TimeControl "5400+30"]

1. e4 {[%emt 0:00:00]} Nf6 {[%emt 0:00:16]} 2. e5 {[%emt 0:00:00]} Nd5 {[%emt 0:00:06]} 3. c4 {[%emt 0:00:00]} Nb6 {[%emt 0:00:08]} 4. c5 {[%emt 0:00:13]} Nd5 {[%emt 0:00:06]} 5. Nc3 {[%emt 0:00:22]} c6 {[%emt 0:01:39]} 6. d4 {[%emt 0:01:28]} Nxc3 {[%emt 0:02:05]} 7. bxc3 {[%emt 0:00:09]} d6 {[%emt 0:01:39]} 8. cxd6 {[%emt 0:02:06]} exd6 {[%emt 0:00:17]} 9. Nf3 {[%emt 0:01:11]} dxe5 {[%emt 0:03:07]} 10. Nxe5 {[%emt 0:00:52]} Bd6 {[%emt 0:02:17]} 11. Nc4 {[%emt 0:03:12]} Be7 {[%emt 0:01:28]} 12. Be2 {[%emt 0:04:56]} O-O {[%emt 0:02:35]} 13. O-O {[%emt 0:01:02]} Nd7 {[%emt 0:00:43]} 14. Qc2 {[%emt 0:02:53]} Nf6 {[%emt 0:04:00]} 15. Rd1 {[%emt 0:03:10]} Bg4 {[%emt 0:02:15]} 16. f3 {[%emt 0:01:26]} Be6 $11 {[%emt 0:01:09]} 17. Rb1 {[%emt 0:01:10]} Qc7 {[%emt 0:08:04]} 18. g3 {[%emt 0:02:56]} Nh5 {[%emt 0:05:25]} 19. f4 {[%emt 0:03:40]} Nf6 {[%emt 0:00:56]} 20. f5 {[%emt 0:01:01]} Bxc4 {[%emt 0:07:43]} 21. Bxc4 {[%emt 0:00:06]} b6 {[%emt 0:06:21]} 22. Bf1 {[%emt 0:12:13]} Rad8 {[%emt 0:02:18]} 23. c4 {[%emt 0:01:29]} Rd7 {[%emt 0:05:20]} 24. Rb3 {[%emt 0:03:54]} Rfd8 {[%emt 0:01:27]} 25. Rbd3 {[%emt 0:00:36]} b5 {[%emt 0:04:24]} 26. Bg2 {[%emt 0:11:57]} bxc4 {[%emt 0:01:24]} 27. Qxc4 {[%emt 0:00:11]} Nd5 {[%emt 0:01:07]} 28. a3 {[%emt 0:03:19]} Bf6 {[%emt 0:02:54]} 29. Kh1 {[%emt 0:08:10]} Re8 {[%emt 0:02:08]} 30. Bd2 {[%emt 0:04:50]} Rc8 {[%emt 0:07:42]} 31. Rc1 {[%emt 0:01:16]} Qb6 {[%emt 0:02:12]} 32. Bxd5 {[%emt 0:02:55]} Rxd5 {[%emt 0:00:15]} 33. Qxd5 {[%emt 0:00:31]} cxd5 {[%emt 0:00:10]} 34. Rxc8+ {[%emt 0:00:02]} Bd8 {[%emt 0:00:09]} 35. Rb3 {[%emt 0:00:51]} Qf6 {[%emt 0:04:50]} 36. Rbb8 {[%emt 0:01:01]} Kf8 {[%emt 0:02:29]} 37. Rxd8+ {[%emt 0:00:27]} Ke7 {[%emt 0:00:14]} 38. Bb4+ {[%emt 0:00:11]} 1-0

[Event "1st 4NCL International U2050"]
[Site "Telford"]
[Date "2018.10.31"]
[Round "1"]
[White "Wilson, Matthew R"]
[Black "Whitehead, Mark A"]
[Result "1/2-1/2"]
[ECO "A05"]
[WhiteElo "1820"]
[BlackElo "1945"]
[Annotator "NA RC"]
[PlyCount "54"]
[EventDate "2018.10.31"]
[EventType "swiss"]
[EventCountry "GBR"]
[SourceTitle "playchess.com"]
[Source "ChessBase"]
[SourceQuality "1"]
[TimeControl "5400+30"]

1. Nf3 {[%emt 0:00:01]} Nf6 {[%emt 0:10:46]} 2. b3 {[%emt 0:00:00]} d6 {[%emt 0:00:58]} 3. Bb2 {[%emt 0:00:28]} e5 {[%emt 0:01:10]} 4. e3 {[%emt 0:01:23]} c6 {[%emt 0:05:25]} 5. c4 {[%emt 0:02:50]} Bg4 {[%emt 0:03:20]} 6. h3 {[%emt 0:00:52]} Bh5 {[%emt 0:00:46]} 7. Be2 {[%emt 0:00:46]} Nbd7 {[%emt 0:00:41]} 8. d3 {[%emt 0:05:04]} Be7 {[%emt 0:02:59]} 9. Nc3 {[%emt 0:01:18]} O-O {[%emt 0:01:47]} 10. g4 {[%emt 0:06:48]} Bg6 {[%emt 0:00:11]} 11. g5 {[%emt 0:08:13]} Ne8 $1 {[%emt 0:04:39]} 12. h4 $11 {[%emt 0:02:19]} f6 {[%emt 0:03:08]} 13. h5 {[%emt 0:01:29]} Bf5 {[%emt 0:00:53]} 14. e4 {[%emt 0:05:58]} Be6 {[%emt 0:00:47]} 15. g6 {[%emt 0:00:59]} h6 {[%emt 0:06:06]} 16. Nh4 {[%emt 0:03:12]} f5 {[%emt 0:16:24]} 17. Nxf5 {[%emt 0:01:05]} Bxf5 {[%emt 0:00:08]} 18. exf5 {[%emt 0:00:02]} Rxf5 {[%emt 0:03:33]} 19. Bg4 {[%emt 0:05:21]} Rf8 {[%emt 0:00:34]} 20. Be6+ {[%emt 0:10:52]} Kh8 {[%emt 0:00:08]} 21. Qg4 {[%emt 0:03:55]} Nc5 {[%emt 0:01:07]} 22. O-O-O {[%emt 0:06:28]} Bg5+ {[%emt 0:07:34]} 23. Kb1 {[%emt 0:00:50]} Rf4 {[%emt 0:02:23]} 24. Qh3 {[%emt 0:00:45]} Rh4 {[%emt 0:07:47]} 25. Qf5 {[%emt 0:03:45]} Rf4 {[%emt 0:01:51]} 26. Qh3 {[%emt 0:00:05]} Rh4 {[%emt 0:01:27]} 27. Qf5 {[%emt 0:00:12]} Rf4 {[%emt 0:00:06]} 1/2-1/2

[Event "1st 4NCL International U2050"]
[Site "Telford"]
[Date "2018.10.31"]
[Round "1"]
[White "Gogia, Armaan"]
[Black "Wynarczyk, Raymond"]
[Result "0-1"]
[ECO "C41"]
[WhiteElo "1808"]
[BlackElo "1908"]
[Annotator "NA RC"]
[PlyCount "94"]
[EventDate "2018.10.31"]
[EventType "swiss"]
[EventCountry "GBR"]
[SourceTitle "playchess.com"]
[Source "ChessBase"]
[SourceQuality "1"]
[TimeControl "5400+30"]

1. e4 {[%emt 0:00:00]} e5 {[%emt 0:00:00]} 2. Nf3 {[%emt 0:00:00]} d6 {[%emt 0:00:00]} 3. d4 {[%emt 0:00:00]} exd4 {[%emt 0:00:02]} 4. Nxd4 {[%emt 0:00:00]} Nf6 {[%emt 0:00:17]} 5. Nc3 {[%emt 0:00:03]} Be7 {[%emt 0:00:10]} 6. Be2 {[%emt 0:00:14]} O-O {[%emt 0:00:39]} 7. O-O {[%emt 0:00:05]} c5 {[%emt 0:03:41]} 8. Nb3 {[%emt 0:00:35]} Nc6 {[%emt 0:02:19]} 9. Bf4 {[%emt 0:06:39]} a6 {[%emt 0:03:45]} 10. a4 {[%emt 0:02:02]} Be6 {[%emt 0:02:23]} 11. f3 {[%emt 0:07:01]} Ne5 {[%emt 0:06:29]} 12. Nxc5 $2 {[%emt 0:04:38]} (12. Be3 $11 {and White has nothing to worry.}) 12... Qb6 {[%emt 0:04:04]} 13. b4 {[%emt 0:07:03]} dxc5 {[%emt 0:03:09]} 14. a5 $19 {[%emt 0:03:29]} Qd6 {[%emt 0:06:16]} 15. Qxd6 {[%emt 0:01:45]} Bxd6 {[%emt 0:00:18]} 16. Rad1 {[%emt 0:01:10]} cxb4 {[%emt 0:04:52]} 17. Rxd6 {[%emt 0:01:13]} Ng6 {[%emt 0:01:40]} 18. Bd2 {[%emt 0:04:09]} bxc3 {[%emt 0:01:35]} 19. Bxc3 {[%emt 0:00:08]} Rfd8 {[%emt 0:04:51]} 20. Rb6 {[%emt 0:01:50]} Nf4 {[%emt 0:02:54]} 21. Re1 {[%emt 0:02:26]} Nxe2+ {[%emt 0:02:57]} 22. Rxe2 {[%emt 0:00:12]} Rd7 {[%emt 0:03:38]} 23. Rd2 {[%emt 0:01:23]} Rxd2 {[%emt 0:10:53]} 24. Bxd2 {[%emt 0:00:14]} Rc8 {[%emt 0:02:27]} 25. Rxb7 {[%emt 0:02:34]} Rxc2 {[%emt 0:01:13]} 26. Rb6 {[%emt 0:00:44]} h6 {[%emt 0:02:23]} 27. Bxh6 {[%emt 0:03:23]} gxh6 {[%emt 0:01:29]} 28. Rxa6 {[%emt 0:00:12]} Nd7 {[%emt 0:08:50]} 29. Ra8+ {[%emt 0:01:20]} Kg7 {[%emt 0:00:14]} 30. a6 {[%emt 0:00:39]} Ra2 {[%emt 0:01:16]} 31. a7 {[%emt 0:00:46]} Kf6 {[%emt 0:02:59]} 32. Rh8 {[%emt 0:00:57]} Rxa7 {[%emt 0:00:57]} 33. Rxh6+ {[%emt 0:01:33]} Kg7 {[%emt 0:01:21]} 34. Rh5 {[%emt 0:00:40]} Ra2 {[%emt 0:00:44]} 35. Rb5 {[%emt 0:02:16]} Rc2 {[%emt 0:00:40]} 36. h3 {[%emt 0:01:44]} Nc5 {[%emt 0:00:48]} 37. Kh2 {[%emt 0:01:30]} Nd3 {[%emt 0:00:19]} 38. Rb1 {[%emt 0:00:37]} Nf4 {[%emt 0:01:15]} 39. Kg3 {[%emt 0:02:17]} Ne2+ {[%emt 0:01:09]} 40. Kh2 {[%emt 0:00:32]} Kf6 {[%emt 0:01:41]} 41. Rb5 {[%emt 0:02:36]} Nd4 {[%emt 0:00:57]} 42. Rb1 {[%emt 0:01:20]} Nxf3+ {[%emt 0:00:21]} 43. Kg3 {[%emt 0:00:07]} Nd2 {[%emt 0:00:45]} 44. Re1 {[%emt 0:01:25]} Ke5 {[%emt 0:00:34]} 45. Re2 {[%emt 0:00:46]} Nxe4+ {[%emt 0:00:36]} 46. Kf3 {[%emt 0:00:06]} Rxe2 {[%emt 0:00:28]} 47. Kxe2 {[%emt 0:00:05]} Kd4 {[%emt 0:00:50]} 0-1

[Event "1st 4NCL International U2050"]
[Site "Telford"]
[Date "2018.10.31"]
[Round "1"]
[White "Potter, Steven"]
[Black "Gostelow, David W"]
[Result "0-1"]
[ECO "D00"]
[WhiteElo "1771"]
[BlackElo "1892"]
[Annotator "NA RC"]
[PlyCount "68"]
[EventDate "2018.10.31"]
[EventType "swiss"]
[EventCountry "GBR"]
[SourceTitle "playchess.com"]
[Source "ChessBase"]
[SourceQuality "1"]
[TimeControl "5400+30"]

1. d4 {[%emt 0:00:00]} d5 {[%emt 0:00:00]} 2. Bg5 {[%emt 0:00:00]} h6 {[%emt 0:03:08]} 3. Bh4 {[%emt 0:00:00]} Nd7 {[%emt 0:00:31]} 4. Nf3 {[%emt 0:00:12]} Ngf6 {[%emt 0:01:06]} 5. e3 {[%emt 0:00:11]} e6 {[%emt 0:02:39]} 6. a3 {[%emt 0:02:01]} Bd6 {[%emt 0:00:20]} 7. Nbd2 {[%emt 0:00:52]} O-O {[%emt 0:07:20]} 8. c4 {[%emt 0:01:27]} b6 {[%emt 0:04:03]} 9. cxd5 {[%emt 0:04:46]} exd5 {[%emt 0:00:16]} 10. Bb5 {[%emt 0:00:25]} c5 {[%emt 0:06:02]} 11. O-O {[%emt 0:04:54]} Qc7 {[%emt 0:02:34]} 12. Rc1 {[%emt 0:01:20]} Bb7 {[%emt 0:01:56]} 13. Bg3 {[%emt 0:02:42]} Bxg3 {[%emt 0:01:34]} 14. hxg3 {[%emt 0:00:25]} a6 {[%emt 0:02:12]} 15. Bxd7 {[%emt 0:00:52]} Nxd7 {[%emt 0:00:33]} 16. Nh4 $11 {[%emt 0:04:04]} Nf6 {[%emt 0:06:44]} 17. Qc2 {[%emt 0:02:49]} Rac8 {[%emt 0:01:30]} 18. Qf5 {[%emt 0:01:53]} Qe7 {[%emt 0:04:47]} 19. dxc5 {[%emt 0:02:09]} bxc5 {[%emt 0:00:19]} 20. Nhf3 {[%emt 0:01:57]} Rfe8 {[%emt 0:05:06]} 21. g4 {[%emt 0:01:28]} Rc6 {[%emt 0:07:41]} 22. g5 {[%emt 0:04:53]} Ne4 {[%emt 0:10:36]} 23. Qxd5 {[%emt 0:02:54]} Rd6 {[%emt 0:04:10]} 24. Qf5 {[%emt 0:05:44]} Nxd2 {[%emt 0:04:12]} 25. Nxd2 {[%emt 0:00:50]} Rxd2 {[%emt 0:00:32]} 26. gxh6 {[%emt 0:00:45]} Rd5 {[%emt 0:01:43]} 27. h7+ {[%emt 0:01:58]} Kh8 {[%emt 0:00:10]} 28. Qh3 {[%emt 0:00:18]} Rg5 {[%emt 0:00:47]} 29. g3 {[%emt 0:02:28]} Rg6 {[%emt 0:01:24]} 30. Rc4 {[%emt 0:00:47]} Be4 {[%emt 0:01:42]} 31. f3 {[%emt 0:04:05]} Bd3 {[%emt 0:00:26]} 32. Rc3 {[%emt 0:02:43]} Qxe3+ {[%emt 0:06:27]} 33. Rf2 {[%emt 0:00:28]} Qe1+ {[%emt 0:01:59]} 34. Kg2 {[%emt 0:02:12]} Rh6 {[%emt 0:01:31]} 0-1

[Event "1st 4NCL International U2050"]
[Site "Telford"]
[Date "2018.10.31"]
[Round "1"]
[White "Wiltshir, Rich"]
[Black "Fallowfield, Nicholas"]
[Result "1-0"]
[ECO "A06"]
[WhiteElo "1673"]
[BlackElo "1883"]
[Annotator "NA RC"]
[PlyCount "95"]
[EventDate "2018.10.31"]
[EventType "swiss"]
[EventCountry "GBR"]
[SourceTitle "playchess.com"]
[Source "ChessBase"]
[SourceQuality "1"]
[TimeControl "5400+30"]

1. Nc3 {[%emt 0:00:00]} Nf6 {[%emt 0:00:00]} 2. Nf3 {[%emt 0:00:12]} d5 {[%emt 0:00:58]} 3. e3 {[%emt 0:00:23]} Bg4 {[%emt 0:01:30]} 4. b3 {[%emt 0:00:14]} e6 {[%emt 0:02:54]} 5. Bb2 {[%emt 0:00:47]} Be7 {[%emt 0:00:25]} 6. h3 {[%emt 0:00:36]} Bh5 {[%emt 0:00:17]} 7. Be2 {[%emt 0:00:58]} O-O {[%emt 0:01:29]} 8. O-O {[%emt 0:06:00]} c5 {[%emt 0:01:58]} 9. d4 {[%emt 0:05:14]} Nc6 {[%emt 0:03:13]} 10. Ne5 {[%emt 0:02:45]} Bxe2 {[%emt 0:03:10]} 11. Nxe2 {[%emt 0:01:57]} Rc8 {[%emt 0:03:58]} 12. c4 {[%emt 0:03:04]} cxd4 {[%emt 0:02:32]} 13. Nxc6 {[%emt 0:01:34]} Rxc6 {[%emt 0:04:59]} 14. Nxd4 {[%emt 0:06:12]} Rc8 {[%emt 0:00:21]} 15. cxd5 {[%emt 0:05:42]} Qxd5 {[%emt 0:04:34]} 16. Qe2 {[%emt 0:04:05]} Qe4 {[%emt 0:08:20]} 17. Rac1 {[%emt 0:02:54]} Nd5 {[%emt 0:01:53]} 18. Rc4 {[%emt 0:01:21]} Nb6 {[%emt 0:08:39]} 19. Nc6 {[%emt 0:04:59]} Nxc4 {[%emt 0:06:42]} 20. Nxe7+ {[%emt 0:03:33]} Kh8 {[%emt 0:00:01]} 21. Nxc8 {[%emt 0:00:40]} Nxb2 {[%emt 0:00:31]} 22. Nd6 {[%emt 0:00:27]} Qd3 {[%emt 0:07:57]} 23. Nxf7+ $16 {[%emt 0:01:35]} ({Worse is} 23. Qxb2 Qxd6 24. Rc1 Kg8 $11) 23... Rxf7 {[%emt 0:00:01]} 24. Qxb2 {[%emt 0:00:20]} h6 {[%emt 0:11:52]} 25. Qe5 {[%emt 0:01:46]} Qa6 {[%emt 0:00:09]} 26. a4 {[%emt 0:06:04]} Qb6 {[%emt 0:02:48]} 27. Rb1 {[%emt 0:06:57]} Qc6 {[%emt 0:06:26]} 28. Qb2 {[%emt 0:08:09]} Rc7 {[%emt 0:05:24]} 29. Rd1 {[%emt 0:04:57]} Qe4 {[%emt 0:03:28]} 30. Rd4 {[%emt 0:09:12]} Qf5 {[%emt 0:00:09]} 31. Rf4 {[%emt 0:01:06]} Qg6 {[%emt 0:02:44]} 32. Qd4 {[%emt 0:01:01]} Qb1+ {[%emt 0:03:22]} 33. Kh2 {[%emt 0:00:15]} Qc2 {[%emt 0:00:55]} 34. Qd8+ {[%emt 0:03:14]} Kh7 {[%emt 0:00:16]} 35. Rf8 {[%emt 0:00:11]} Qc6 {[%emt 0:00:50]} 36. Rh8+ {[%emt 0:01:34]} Kg6 {[%emt 0:00:02]} 37. Qd3+ {[%emt 0:00:17]} Kf7 {[%emt 0:00:41]} 38. Qd4 {[%emt 0:00:35]} Rc8 {[%emt 0:02:43]} 39. Qf4+ {[%emt 0:01:20]} Ke7 {[%emt 0:00:17]} 40. Qh4+ {[%emt 0:01:06]} Kd7 {[%emt 0:01:01]} 41. Qd4+ {[%emt 0:00:25]} Kc7 {[%emt 0:00:05]} 42. Qxg7+ {[%emt 0:00:25]} Kb6 {[%emt 0:00:43]} 43. Qd4+ {[%emt 0:01:02]} Ka6 {[%emt 0:00:42]} 44. Rxh6 {[%emt 0:00:35]} b6 {[%emt 0:00:29]} 45. Qd3+ {[%emt 0:00:31]} Kb7 {[%emt 0:00:18]} 46. Rh7+ {[%emt 0:00:23]} Kb8 {[%emt 0:00:38]} 47. Qa6 {[%emt 0:00:51]} Qd6+ {[%emt 0:00:34]} 48. g3 {[%emt 0:01:11]} 1-0